fUST/lending_fUST_20250809
["ID","MTS","AMOUNT","RATE_DAILY","PERIOD"]
[378111668,1754736644606,-500.0,0.00022173,2]
[378111669,1754736644615,-596.48551058,0.00022173,2]
[378111670,1754736644625,-500.0,0.00022173,2]
[378111671,1754736644634,-500.0,0.00022173,2]
[378111672,1754736644644,-570.00329129,0.00022173,2]
[378111673,1754736644653,-500.0,0.00022173,2]
[378111674,1754736644662,-500.0,0.00022173,2]
[378111675,1754736644672,-500.0,0.00022173,2]
[378111676,1754736644681,-500.0,0.00022173,2]
[378111677,1754736644690,-589.66542889,0.00022173,2]
[378111678,1754736644700,-500.0,0.00022173,2]
[378111679,1754736644709,-598.57718967,0.00022173,2]
[378111680,1754736644719,-500.0,0.00022173,2]
[378111681,1754736644729,-500.0,0.00022173,2]
[378111682,1754736644738,-500.0,0.00022173,2]
[378111683,1754736644747,-500.0,0.00022173,2]
[378111684,1754736644757,-500.0,0.00022173,2]
[378111685,1754736644766,-501.21025951,0.00022173,2]
[378111686,1754736644775,-500.0,0.00022173,2]
[378111687,1754736644785,-500.0,0.00022173,2]
[378111688,1754736644796,-500.0,0.00022173,2]
[378111689,1754736644807,-500.0,0.00022173,2]
[378111690,1754736644816,-500.0,0.00022173,2]
[378111691,1754736644825,-151.578872,0.00022173,7]
[378111692,1754736644835,-460.0,0.00022191,2]
[378111693,1754736644844,-477.08515886,0.00022191,2]
[378111694,1754736644854,-533.06789444,0.00022191,2]
[378111695,1754736644863,-460.0,0.00022191,2]
[378111696,1754736644873,-460.0,0.00022191,2]
[378111697,1754736644883,-460.0,0.00022191,2]
[378111698,1754736644892,-462.18231419,0.00022191,2]
[378111699,1754736644901,-460.0,0.00022191,2]
[378111700,1754736644911,-460.0,0.00022191,2]
[378111701,1754736644921,-465.3048346,0.00022191,2]
[378111702,1754736644931,-460.0,0.00022191,2]
[378111703,1754736644941,-460.0,0.00022191,2]
[378111704,1754736644951,-220.91676957,0.00022191,2]
[378111705,1754736644962,-460.0,0.00022191,2]
[378111706,1754736644972,-460.0,0.00022191,2]
[378111707,1754736644982,-460.0,0.00022191,2]
[378111708,1754736644992,-460.0,0.00022191,2]
[378111709,1754736645001,-460.0,0.00022191,2]
[378111710,1754736645011,-460.0,0.00022191,2]
[378111711,1754736645020,-460.0,0.00022191,2]
[378111712,1754736645030,-383.27943891,0.00022191,2]
[378111713,1754736645041,-460.0,0.00022191,2]
[378111714,1754736645050,-498.35190869,0.00022191,2]
[378111715,1754736645060,-460.0,0.00022191,2]
[378111716,1754736645069,-460.0,0.00022191,2]
[378111717,1754736645078,-460.0,0.00022191,2]
[378111718,1754736645087,-737.92,0.00022191,2]
[378111719,1754736645097,-460.0,0.00022191,2]
[378111720,1754736645107,-460.0,0.00022191,2]
[378111721,1754736645116,-463.99054713,0.00022191,2]
[378111722,1754736645126,-460.0,0.00022191,2]
[378111723,1754736645135,-460.0,0.00022191,2]
[378111724,1754736645145,-465.24769755,0.00022191,2]
[378111725,1754736645155,-460.0,0.00022191,2]
[378111726,1754736645164,-460.0,0.00022191,2]
[378111727,1754736645174,-468.29935006,0.00022191,2]
[378111728,1754736645184,-460.0,0.00022191,2]
[378111729,1754736645194,-460.0,0.00022191,2]
[378111730,1754736645205,-460.0,0.00022191,2]
[378111731,1754736645215,-466.17159254,0.00022191,2]
[378111732,1754736645225,-460.0,0.00022191,2]
[378111733,1754736645239,-460.0,0.00022191,2]
[378111734,1754736645250,-460.0,0.00022191,2]
[378111735,1754736645260,-460.0,0.00022191,2]
[378111736,1754736645270,-460.0,0.00022191,2]
[378111737,1754736645281,-460.0,0.00022191,2]
[378111738,1754736645291,-460.0,0.00022191,2]
[378111739,1754736645301,-460.0,0.00022191,2]
[378111740,1754736645312,-460.0,0.00022191,2]
[378111741,1754736645322,-460.0,0.00022191,2]
[378111742,1754736645332,-460.0,0.00022191,2]
[378111743,1754736645342,-471.80572513,0.00022191,2]
[378111744,1754736645352,-460.0,0.00022191,2]
[378111745,1754736645361,-460.0,0.00022191,2]
[378111746,1754736645371,-460.0,0.00022191,2]
[378111747,1754736645381,-460.0,0.00022191,2]
[378111748,1754736645390,-460.0,0.00022191,2]
[378111749,1754736645400,-460.0,0.00022191,2]
[378111750,1754736645410,-460.0,0.00022191,2]
[378111751,1754736645420,-460.0,0.00022191,2]
[378111752,1754736645429,-460.0,0.00022191,2]
[378111753,1754736645439,-460.0,0.00022191,2]
[378111754,1754736645448,-460.0,0.00022191,2]
[378111755,1754736645459,-464.69080446,0.00022191,2]
[378111756,1754736645468,-460.0,0.00022191,2]
[378111757,1754736645478,-460.0,0.00022191,2]
[378111758,1754736645488,-676.07,0.00022191,2]
[378111761,1754736645497,-460.0,0.00022191,2]
[378111762,1754736645506,-460.0,0.00022191,2]
[378111763,1754736645516,-460.0,0.00022191,2]
[378111764,1754736645525,-460.0,0.00022191,2]
[378111765,1754736645535,-460.0,0.00022191,2]
[378111766,1754736645545,-460.0,0.00022191,2]
[378111767,1754736645554,-460.0,0.00022191,2]
[378111768,1754736645564,-851.35,0.00022191,2]
[378111769,1754736645574,-676.22,0.00022191,2]
[378111770,1754736645583,-464.1149455,0.00022191,2]
[378111771,1754736645592,-380.79507103,0.00022191,2]
[378111772,1754736645602,-364.82957093,0.00022191,2]
[378111773,1754736645612,-460.0,0.00022191,2]
[378111774,1754736645621,-495.26047319,0.00022191,2]
[378111775,1754736645630,-460.0,0.00022191,2]
[378111776,1754736645639,-460.0,0.00022191,2]
[378111777,1754736645649,-460.0,0.00022191,2]
[378111778,1754736645658,-460.0,0.00022191,2]
[378111779,1754736645668,-460.0,0.00022191,2]
[378111780,1754736645677,-537.31401933,0.00022191,2]
[378111781,1754736645686,-460.0,0.00022191,2]
[378111782,1754736645695,-500.0,0.00022191,2]
[378111783,1754736645705,-460.0,0.00022191,2]
[378111784,1754736645714,-460.0,0.00022191,2]
[378111785,1754736645724,-460.0,0.00022191,2]
[378111786,1754736645733,-151.0,0.00022191,7]
[378111787,1754736645742,-460.0,0.00022191,2]
[378111788,1754736645752,-460.0,0.00022191,2]
[378111790,1754736645761,-460.0,0.00022191,2]
[378111791,1754736645770,-460.0,0.00022191,2]
[378111793,1754736645780,-460.0,0.00022191,2]
[378111795,1754736645789,-1043.19,0.00022191,2]
[378111797,1754736645799,-460.0,0.00022191,2]
[378111799,1754736645808,-460.0,0.00022191,2]
[378111801,1754736645818,-483.37766896,0.00022191,2]
[378111803,1754736645827,-754.44,0.00022191,2]
[378111805,1754736645837,-538.67,0.00022191,2]
[378111807,1754736645847,-460.0,0.00022191,2]
[378111823,1754736645992,-301.47104184,0.00022191,2]
[378111825,1754736646003,-460.0,0.00022191,2]
[378111827,1754736646012,-460.0,0.00022191,2]
[378111829,1754736646022,-460.0,0.00022191,2]
[378111831,1754736646031,-469.1210066,0.00022191,2]
[378111833,1754736646040,-465.97307997,0.00022191,2]
[378111834,1754736646051,-460.0,0.00022191,2]
[378111836,1754736646060,-469.86628567,0.00022191,2]
[378111838,1754736646070,-460.0,0.00022191,2]
[378111840,1754736646080,-460.0,0.00022191,2]
[378111842,1754736646090,-460.0,0.00022191,2]
[378111844,1754736646099,-526.99,0.00022191,2]
[378111846,1754736646109,-355.79745518,0.00022191,2]
[378111848,1754736646119,-460.0,0.00022191,2]
[378111850,1754736646128,-460.0,0.00022191,2]
[378111852,1754736646138,-460.0,0.00022191,2]
[378111854,1754736646148,-460.0,0.00022191,2]
[378111856,1754736646157,-460.0,0.00022191,2]
[378111858,1754736646167,-1396.46,0.00022191,2]
[378111860,1754736646177,-773.76,0.00022191,2]
[378111862,1754736646187,-463.82584705,0.00022191,2]
[378111864,1754736646197,-467.06004277,0.00022191,2]
[378111866,1754736646207,-464.00773258,0.00022191,2]
[378111868,1754736646217,-460.0,0.00022191,2]
[378111870,1754736646227,-460.0,0.00022191,2]
[378111872,1754736646240,-460.0,0.00022191,2]
[378111874,1754736646250,-460.0,0.00022191,2]
[378111876,1754736646260,-460.0,0.00022191,2]
[378111878,1754736646270,-1282.1,0.00022191,2]
[378111880,1754736646282,-460.0,0.00022191,2]
[378111882,1754736646291,-774.83,0.00022191,2]
[378111884,1754736646303,-460.0,0.00022191,2]
[378111885,1754736646314,-607.02,0.00022191,2]
[378111887,1754736646324,-629.32,0.00022191,2]
[378111889,1754736646333,-460.0,0.00022191,2]
[378111891,1754736646343,-460.0,0.00022191,2]
[378111893,1754736646353,-460.0,0.00022191,2]
[378111894,1754736646363,-460.0,0.00022191,2]
[378111895,1754736646373,-460.0,0.00022191,2]
[378111896,1754736646382,-460.0,0.00022191,2]
[378111897,1754736646391,-464.28318477,0.00022191,2]
[378111898,1754736646401,-460.0,0.00022191,2]
[378111899,1754736646410,-552.2,0.00022191,2]
[378111900,1754736646419,-460.0,0.00022191,2]
[378111901,1754736646431,-685.15,0.00022191,2]
[378111902,1754736646440,-460.0,0.00022191,2]
[378111903,1754736646450,-936.91,0.00022191,2]
[378111904,1754736646459,-772.55,0.00022191,2]
[378111905,1754736646469,-460.0,0.00022191,2]
[378111906,1754736646479,-460.0,0.00022191,2]
[378111907,1754736646488,-460.0,0.00022191,2]
[378111908,1754736646497,-460.0,0.00022191,2]
[378111909,1754736646506,-460.0,0.00022191,2]
[378111910,1754736646516,-475.27009664,0.00022191,2]
[378111911,1754736646525,-1271.87,0.00022191,2]
[378111912,1754736646535,-1180.67,0.00022191,2]
[378111913,1754736646544,-460.0,0.00022191,2]
[378111914,1754736646553,-460.0,0.00022191,2]
[378111915,1754736646562,-460.0,0.00022191,2]
[378111916,1754736646572,-460.0,0.00022191,2]
[378111917,1754736646581,-460.0,0.00022191,2]
[378111918,1754736646591,-3003.25,0.00022191,2]
[378111919,1754736646600,-460.0,0.00022191,2]
[378111920,1754736646609,-1201.12,0.00022191,2]
[378111921,1754736646619,-2781.74,0.00022191,2]
[378111922,1754736646628,-5587.61,0.00022191,2]
[378111924,1754736646637,-460.0,0.00022191,2]
[378111926,1754736646646,-460.0,0.00022191,2]
[378111928,1754736646655,-460.0,0.00022191,2]
[378111930,1754736646664,-460.0,0.00022191,2]
[378111932,1754736646673,-460.0,0.00022191,2]
[378111934,1754736646683,-3421.8,0.00022191,2]
[378111936,1754736646692,-460.0,0.00022191,2]
[378111938,1754736646701,-460.0,0.00022191,2]
[378111940,1754736646710,-1627.48,0.00022191,2]
[378111942,1754736646719,-460.0,0.00022191,2]
[378111944,1754736646728,-460.0,0.00022191,2]
[378111946,1754736646737,-460.0,0.00022191,2]
[378111948,1754736646747,-460.0,0.00022191,2]
[378111950,1754736646756,-361.57128903,0.00022191,2]
[378111952,1754736646766,-467.29265005,0.00022191,2]
[378111954,1754736646775,-462.14664678,0.00022191,2]
[378111956,1754736646784,-460.0,0.00022191,2]
[378111957,1754736646793,-460.0,0.00022191,2]
[378111959,1754736646802,-460.0,0.00022191,2]
[378111961,1754736646812,-460.0,0.00022191,2]
[378111963,1754736646822,-460.0,0.00022191,2]
[378111966,1754736646832,-460.0,0.00022191,2]
[378111968,1754736646841,-460.0,0.00022191,2]
[378111970,1754736646850,-651.95,0.00022191,2]
[378111972,1754736646860,-460.0,0.00022191,2]
[378111974,1754736646869,-460.0,0.00022191,2]
[378111975,1754736646879,-460.0,0.00022191,2]
[378111977,1754736646888,-460.0,0.00022191,2]
[378111980,1754736646898,-460.0,0.00022191,2]
[378111982,1754736646908,-1412.78,0.00022191,2]
[378111984,1754736646917,-654.19,0.00022191,2]
[378111986,1754736646926,-460.0,0.00022191,2]
[378111988,1754736646936,-460.0,0.00022191,2]
[378111990,1754736646946,-277.89146572,0.00022191,2]
[378111992,1754736646955,-1672.52,0.00022191,2]
[378111994,1754736646965,-460.0,0.00022191,2]
[378111995,1754736646974,-460.0,0.00022191,2]
[378111997,1754736646984,-460.0,0.00022191,2]
[378111999,1754736646993,-460.0,0.00022191,2]
[378112001,1754736647003,-460.0,0.00022191,2]
[378112003,1754736647012,-332.54343963,0.00022191,2]
[378112005,1754736647022,-664.35,0.00022191,2]
[378112007,1754736647031,-557.17,0.00022191,2]
[378112009,1754736647041,-680.33,0.00022191,2]
[378112011,1754736647050,-460.0,0.00022191,2]
[378112013,1754736647060,-460.0,0.00022191,2]
[378112016,1754736647069,-1004.94,0.00022191,2]
[378112017,1754736647079,-460.0,0.00022191,2]
[378112020,1754736647088,-559.82,0.00022191,2]
[378112022,1754736647098,-460.0,0.00022191,2]
[378112024,1754736647107,-460.0,0.00022191,2]
[378112026,1754736647117,-1752.93,0.00022191,2]
[378112028,1754736647126,-460.0,0.00022191,2]
[378112030,1754736647135,-552.94,0.00022191,2]
[378112032,1754736647144,-460.0,0.00022191,2]
[378112034,1754736647154,-460.0,0.00022191,2]
[378112035,1754736647163,-466.73,0.00022191,2]
[378112038,1754736647173,-460.0,0.00022191,2]
[378112040,1754736647182,-460.0,0.00022191,2]
[378112041,1754736647191,-460.0,0.00022191,2]
[378112043,1754736647200,-1506.29,0.00022191,2]
[378112046,1754736647210,-460.0,0.00022191,2]
[378112047,1754736647220,-460.0,0.00022191,2]
[378112049,1754736647229,-1055.97,0.00022191,2]
[378112051,1754736647242,-460.0,0.00022191,2]
[378112053,1754736647251,-460.0,0.00022191,2]
[378112055,1754736647260,-460.0,0.00022191,2]
[378112057,1754736647269,-865.78,0.00022191,2]
[378112059,1754736647279,-983.04,0.00022191,2]
[378112061,1754736647289,-460.0,0.00022191,2]
[378112063,1754736647299,-460.0,0.00022191,2]
[378112065,1754736647310,-460.0,0.00022191,2]
[378112067,1754736647319,-460.0,0.00022191,2]
[378112069,1754736647329,-460.0,0.00022191,2]
[378112071,1754736647338,-460.0,0.00022191,2]
[378112073,1754736647347,-460.0,0.00022191,2]
[378112075,1754736647357,-598.85,0.00022191,2]
[378112077,1754736647367,-467.47258127,0.00022191,2]
[378112079,1754736647376,-460.0,0.00022191,2]
[378112081,1754736647385,-566.24,0.00022191,2]
[378112083,1754736647395,-636.79,0.00022191,2]
[378112085,1754736647403,-460.0,0.00022191,2]
[378112086,1754736647413,-460.0,0.00022191,2]
[378112088,1754736647423,-811.7,0.00022191,2]
[378112090,1754736647432,-460.0,0.00022191,2]
[378112092,1754736647442,-460.0,0.00022191,2]
[378112094,1754736647451,-460.0,0.00022191,2]
[378112096,1754736647461,-463.89803972,0.00022191,2]
[378112098,1754736647470,-533.36,0.00022191,2]
[378112100,1754736647479,-460.0,0.00022191,2]
[378112102,1754736647489,-460.0,0.00022191,2]
[378112104,1754736647498,-460.0,0.00022191,2]
[378112106,1754736647507,-460.0,0.00022191,2]
[378112108,1754736647516,-460.0,0.00022191,2]
[378112110,1754736647526,-460.0,0.00022191,2]
[378112112,1754736647535,-3067.95,0.00022191,2]
[378112114,1754736647545,-460.0,0.00022191,2]
[378112116,1754736647554,-460.0,0.00022191,2]
[378112118,1754736647563,-460.0,0.00022191,2]
[378112120,1754736647573,-2095.6,0.00022191,2]
[378112122,1754736647583,-1092.85,0.00022191,2]
[378112124,1754736647594,-460.0,0.00022191,2]
[378112126,1754736647603,-460.0,0.00022191,2]
[378112128,1754736647613,-168.0,0.00022192,7]
[378112130,1754736647623,-160.0,0.00022241,2]
[378112132,1754736647632,-160.0,0.00022241,2]
[378112134,1754736647641,-160.0,0.00022241,2]
[378112136,1754736647651,-461.55179734,0.00022241,2]
[378112138,1754736647660,-160.0,0.00022241,2]
[378112140,1754736647669,-160.0,0.00022243,2]
[378112142,1754736647678,-12666.14847857,0.00022243,2]
[378112144,1754736647687,-160.0,0.00022243,2]
[378112146,1754736647696,-312.16666667,0.00022243,2]
[378112148,1754736647706,-215.40758176,0.00022243,2]
[378112150,1754736647715,-842.95011917,0.00022243,2]
[378112152,1754736647724,-231.92402426,0.00022243,2]
[378112154,1754736647733,-216.61183532,0.00022243,2]
[378112156,1754736647742,-160.0,0.00022243,2]
[378112158,1754736647752,-160.0,0.00022243,2]
[378112160,1754736647761,-151.602963,0.00022243,7]
[378112162,1754736647770,-434.549649,0.00022243,7]
[378112164,1754736647780,-434.549649,0.00022243,7]
[378112166,1754736647789,-460.0,0.00022245,2]
[378112168,1754736647798,-69.0887775,0.00022245,2]
[378112254,1754736648637,-279.39000004,0.00021868,2]
[378112256,1754736648648,-220.60999996,0.00021868,2]
[378112258,1754736648658,-500.0,0.00021868,2]
[378112260,1754736648667,-223.27174926,0.00021868,2]
[378112262,1754736648679,-274.46986672,0.00021868,2]
[378112276,1754736648810,-0.01043271,0.00021868,2]
[378112279,1754736648821,-139.27460551,0.00021868,2]
[378112281,1754736648831,-154.42353487,0.00021868,2]
[378112283,1754736648840,-225.07034282,0.00021868,2]
[378112309,1754736649089,-274.92965718,0.00021868,2]
[378112311,1754736649100,-500.0,0.00021868,2]
[378112313,1754736649111,-156.93191358,0.00021868,2]
[378112315,1754736649121,-10699.24,0.000219,2]
[378112317,1754736649132,-486.86,0.00021907,3]
[378112319,1754736649142,-500.0,0.00021916,2]
[378112321,1754736649152,-289.21229571,0.00021916,2]
[378112323,1754736649163,-460.0,0.00021917,2]
[378112325,1754736649174,-177.40271045,0.00021917,2]
[378112327,1754736649184,-460.0,0.00021917,2]
[378112329,1754736649194,-460.0,0.00021917,2]
[378112331,1754736649204,-460.0,0.00021917,2]
[378112333,1754736649214,-350.88751034,0.00022191,2]
[378112335,1754736649225,-461.90342057,0.00022191,2]
[378112337,1754736649238,-460.0,0.00022245,2]
[378112339,1754736649248,-460.0,0.00022245,2]
[378112341,1754736649258,-853.46,0.00022245,2]
[378112343,1754736649268,-460.0,0.00022245,2]
[378112345,1754736649279,-460.0,0.00022245,2]
[378112347,1754736649290,-460.0,0.00022245,2]
[378112349,1754736649302,-460.0,0.00022245,2]
[378112351,1754736649315,-460.0,0.00022245,2]
[378112353,1754736649324,-460.0,0.00022245,2]
[378112355,1754736649334,-460.0,0.00022245,2]
[378112357,1754736649344,-460.0,0.00022245,2]
[378112359,1754736649354,-151.0,0.00022245,7]
[378112361,1754736649364,-460.0,0.00022245,2]
[378112363,1754736649374,-460.0,0.00022245,2]
[378112365,1754736649383,-460.0,0.00022245,2]
[378112367,1754736649392,-460.0,0.00022245,2]
[378112369,1754736649402,-432.52583897,0.00022245,2]
[378112371,1754736649411,-438.598391,0.00022245,7]
[378112373,1754736649421,-438.598391,0.00022245,7]
[378112375,1754736649430,-151.0,0.00022245,7]
[378112377,1754736649439,-460.0,0.00022246,2]
[378112379,1754736649449,-507.072,0.00022267,2]
[378112381,1754736649458,-2959.88817205,0.00022465,2]
[378112383,1754736649468,-469.29184274,0.00022465,2]
[378112385,1754736649477,-476.28186119,0.00022465,2]
[378112387,1754736649486,-460.0,0.00022465,2]
[378112389,1754736649496,-460.0,0.00022465,2]
[378112391,1754736649505,-460.0,0.00022465,2]
[378112393,1754736649515,-460.0,0.00022465,2]
[378112395,1754736649524,-468.86349631,0.00022465,2]
[378112397,1754736649533,-460.0,0.00022465,2]
[378112399,1754736649542,-460.0,0.00022465,2]
[378112401,1754736649552,-460.0,0.00022465,2]
[378112403,1754736649561,-460.0,0.00022465,2]
[378112405,1754736649571,-460.0,0.00022465,2]
[378112407,1754736649580,-460.0,0.00022465,2]
[378112409,1754736649589,-460.0,0.00022465,2]
[378112411,1754736649599,-460.0,0.00022465,2]
[378112413,1754736649608,-737.92,0.00022465,2]
[378112414,1754736649617,-460.0,0.00022465,2]
[378112417,1754736649627,-460.0,0.00022465,2]
[378112418,1754736649636,-460.0,0.00022465,2]
[378112420,1754736649646,-460.0,0.00022465,2]
[378112423,1754736649655,-460.0,0.00022465,2]
[378112424,1754736649665,-460.0,0.00022465,2]
[378112426,1754736649674,-460.0,0.00022465,2]
[378112428,1754736649684,-460.0,0.00022465,2]
[378112431,1754736649694,-460.0,0.00022465,2]
[378112433,1754736649705,-212.70918085,0.00022465,2]
[378112434,1754736649715,-464.19644692,0.00022465,2]
[378112436,1754736649724,-411.16229983,0.00022465,2]
[378112439,1754736649735,-460.0,0.00022465,2]
[378112441,1754736649745,-460.0,0.00022465,2]
[378112443,1754736649755,-460.0,0.00022465,2]
[378112445,1754736649764,-460.0,0.00022465,2]
[378112446,1754736649773,-460.0,0.00022465,2]
[378112448,1754736649783,-460.0,0.00022465,2]
[378112451,1754736649793,-460.0,0.00022465,2]
[378112453,1754736649803,-460.0,0.00022465,2]
[378112454,1754736649813,-460.0,0.00022465,2]
[378112457,1754736649823,-460.0,0.00022465,2]
[378112458,1754736649832,-460.0,0.00022465,2]
[378112460,1754736649842,-460.0,0.00022465,2]
[378112462,1754736649851,-676.07,0.00022465,2]
[378112464,1754736649861,-466.82979152,0.00022465,2]
[378112466,1754736649870,-460.0,0.00022465,2]
[378112468,1754736649880,-460.0,0.00022465,2]
[378112470,1754736649889,-460.0,0.00022465,2]
[378112472,1754736649899,-460.0,0.00022465,2]
[378112475,1754736649908,-464.61691886,0.00022465,2]
[378112476,1754736649918,-851.35,0.00022465,2]
[378112478,1754736649928,-676.22,0.00022465,2]
[378112481,1754736649938,-460.0,0.00022465,2]
[378112482,1754736649947,-460.0,0.00022465,2]
[378112485,1754736649956,-460.0,0.00022465,2]
[378112487,1754736649965,-460.0,0.00022465,2]
[378112488,1754736649975,-460.0,0.00022465,2]
[378112491,1754736649984,-460.0,0.00022465,2]
[378112493,1754736649995,-460.0,0.00022465,2]
[378112495,1754736650006,-460.0,0.00022465,2]
[378112497,1754736650022,-460.0,0.00022465,2]
[378112499,1754736650032,-460.0,0.00022465,2]
[378112501,1754736650041,-151.0,0.00022465,7]
[378112503,1754736650052,-460.0,0.00022465,2]
[378112505,1754736650061,-460.0,0.00022465,2]
[378112507,1754736650070,-460.0,0.00022465,2]
[378112509,1754736650080,-460.0,0.00022465,2]
[378112511,1754736650089,-1043.19,0.00022465,2]
[378112513,1754736650098,-460.0,0.00022465,2]
[378112515,1754736650108,-460.0,0.00022465,2]
[378112517,1754736650117,-460.0,0.00022465,2]
[378112519,1754736650126,-460.0,0.00022465,2]
[378112521,1754736650135,-460.0,0.00022465,2]
[378112523,1754736650145,-460.0,0.00022465,2]
[378112525,1754736650154,-460.0,0.00022465,2]
[378112527,1754736650165,-460.0,0.00022465,2]
[378112529,1754736650176,-460.0,0.00022465,2]
[378112531,1754736650185,-526.99,0.00022465,2]
[378112533,1754736650195,-460.0,0.00022465,2]
[378112535,1754736650204,-460.0,0.00022465,2]
[378112537,1754736650214,-460.0,0.00022465,2]
[378112539,1754736650223,-1396.46,0.00022465,2]
[378112541,1754736650245,-773.76,0.00022465,2]
[378112543,1754736650256,-460.0,0.00022465,2]
[378112545,1754736650266,-460.0,0.00022465,2]
[378112547,1754736650275,-460.0,0.00022465,2]
[378112550,1754736650285,-1282.1,0.00022465,2]
[378112552,1754736650295,-460.0,0.00022465,2]
[378112554,1754736650307,-774.83,0.00022465,2]
[378112556,1754736650321,-460.0,0.00022465,2]
[378112557,1754736650332,-629.32,0.00022465,2]
[378112560,1754736650342,-607.02,0.00022465,2]
[378112562,1754736650351,-460.0,0.00022465,2]
[378112564,1754736650363,-460.0,0.00022465,2]
[378112566,1754736650374,-552.2,0.00022465,2]
[378112568,1754736650383,-460.0,0.00022465,2]
[378112570,1754736650392,-685.15,0.00022465,2]
[378112572,1754736650402,-936.91,0.00022465,2]
[378112574,1754736650411,-772.55,0.00022465,2]
[378112576,1754736650421,-460.0,0.00022465,2]
[378112578,1754736650430,-460.0,0.00022465,2]
[378112580,1754736650439,-460.0,0.00022465,2]
[378112581,1754736650451,-460.0,0.00022465,2]
[378112583,1754736650460,-460.0,0.00022465,2]
[378112586,1754736650470,-1271.87,0.00022465,2]
[378112587,1754736650479,-1180.67,0.00022465,2]
[378112589,1754736650489,-460.0,0.00022465,2]
[378112591,1754736650498,-460.0,0.00022465,2]
[378112593,1754736650507,-460.0,0.00022465,2]
[378112596,1754736650517,-460.0,0.00022465,2]
[378112598,1754736650526,-3003.25,0.00022465,2]
[378112600,1754736650536,-460.0,0.00022465,2]
[378112602,1754736650546,-1201.12,0.00022465,2]
[378112604,1754736650555,-2781.74,0.00022465,2]
[378112606,1754736650565,-5587.61,0.00022465,2]
[378112608,1754736650573,-460.0,0.00022465,2]
[378112610,1754736650583,-460.0,0.00022465,2]
[378112611,1754736650592,-460.0,0.00022465,2]
[378112613,1754736650602,-460.0,0.00022465,2]
[378112616,1754736650612,-460.0,0.00022465,2]
[378112617,1754736650621,-3421.8,0.00022465,2]
[378112620,1754736650633,-434.549649,0.00022465,7]
[378112621,1754736650642,-460.0,0.00022465,2]
[378112623,1754736650652,-1627.48,0.00022465,2]
[378112625,1754736650662,-460.0,0.00022465,2]
[378112627,1754736650677,-460.0,0.00022465,2]
[378112628,1754736650686,-460.0,0.00022465,2]
[378112629,1754736650696,-434.549649,0.00022465,7]
[378112630,1754736650705,-455.0,0.00022465,2]
[378112631,1754736650715,-460.0,0.00022465,2]
[378112632,1754736650724,-460.0,0.00022465,2]
[378112633,1754736650733,-460.0,0.00022465,2]
[378112634,1754736650742,-460.0,0.00022465,2]
[378112635,1754736650751,-460.0,0.00022465,2]
[378112636,1754736650761,-545.23018249,0.00022465,2]
[378112637,1754736650770,-651.95,0.00022465,2]
[378112638,1754736650779,-460.0,0.00022465,2]
[378112639,1754736650789,-460.0,0.00022465,2]